Cogmind - Beta 13 @@@ ROGUE MODE // 2024.04.22 @ 00:22:39 Player: Alphabethead Result: Destroyed self with Rocket Launcher Performance ------------- Evolutions (2) 1000 Regions Visited (6) 1200 Robots Destroyed (27) 135 Value Destroyed (912) 912 Prototype IDs (4) 80 Alien Tech Used (0) 0 Bonus (300) 300 TOTAL SCORE: 3627 Bonus ------- Aligned with FarCom 300 Cogmind --------- Core Integrity 0/550 Matter 235/300 Energy 100/100 System Corruption 0% Temperature Warning (378) Movement Core (150) Ox2 Location -8/Storage Parts ------- > --- POWER (1) -------- (None) > --- PROPULSION (4) --- (None) > --- UTILITY (3) ------ (None) > --- WEAPON (3) ------- Mini Assault Cannon Rocket Launcher > --- INVENTORY (5) ---- Improved Ion Engine Experimental Sensor Array Peak State ------------ > --- POWER ------------ Reinforced Ion Engine > --- PROPULSION ------- Aluminum Leg Aluminum Leg Aluminum Leg Titanium Leg > --- UTILITY ---------- Small Storage Unit Improved Sensor Array Cloak of Protection > --- WEAPON ----------- Light Assault Rifle Light Assault Rifle Heavy Assault Rifle > --- INVENTORY -------- Light Angular Momentum Engine Experimental Sensor Array Guided Plasma Cannon Rocket Launcher [Rating: 26] Favorites ----------- Power Reinforced Ion Engine Engine Reinforced Ion Engine Power Core Light Nuclear Core Propulsion Aluminum Leg Leg Aluminum Leg Utility Small Storage Unit Device Cloak of Protection Storage Small Storage Unit Weapon Light Assault Rifle Energy Gun Medium Laser Energy Cannon Guided Plasma Cannon Ballistic Gun Light Assault Rifle Ballistic Cannon Mini Assault Cannon Launcher Rocket Launcher Build | -11 -10 -10 -10 -9 -8 -8 ------- Run | Yrd Mat Min Exi Min Mat Sto Slots Evolved 4 | . . . . . 4 . Power . | . . . . . . . Propulsion 2 | . . . . . 2 . Utility 1 | . . . . . 1 . Weapon 1 | . . . . . 1 . Parts Attached 34 | 6 1 3 6 4 5 9 Power 5 | 1 . 1 . 1 . 2 Engine 4 | 1 . . . 1 . 2 Core 1 | . . 1 . . . . Reactor . | . . . . . . . Propulsion 8 | 2 . . . 3 2 1 Treads . | . . . . . . . Leg 8 | 2 . . . 3 2 1 Wheel . | . . . . . . . Hover . | . . . . . . . Flight . | . . . . . . . Utility 7 | 1 1 . 3 . 1 1 Device 6 | . 1 . 3 . 1 1 Storage 1 | 1 . . . . . . Processor . | . . . . . . . Hackware . | . . . . . . . Protection . | . . . . . . . Artifact . | . . . . . . . Weapon 14 | 2 . 2 3 . 2 5 Energy Gun 4 | 2 . . . . . 2 Energy Cannon 2 | . . . 1 . . 1 Ballistic Gun 6 | . . 2 2 . 2 . Ballistic Cannon 1 | . . . . . . 1 Launcher 1 | . . . . . . 1 Special Weapon . | . . . . . . . Impact Weapon . | . . . . . . . Slashing Weapon . | . . . . . . . Piercing Weapon . | . . . . . . . Special Melee Weapon . | . . . . . . . Unidentified Prototypes 4 | . . . 3 . . 1 Parts Lost 20 | . . 2 . 1 4 13 Power 4 | . . 1 . 1 . 2 Propulsion 5 | . . . . . 1 4 Utility 5 | . . 1 . . 1 3 Weapon 6 | . . . . . 2 4 Highest Loss Streak 6 | . . 1 . 1 3 6 To Critical Strikes . | . . . . . . . Average Slot Usage (%) 86 | . 95 88 84 100 89 61 Engine 9 | . 14 12 . 10 9 8 Core 2 | . . 1 14 3 . . Leg 27 | . 28 28 28 28 35 13 Device 8 | . 9 3 . 14 11 10 Storage 11 | . 14 14 14 14 9 9 Energy Gun 4 | . 28 6 . . . 8 Ballistic Gun 20 | . . 21 27 28 24 8 Naked Turns . | . . . . . . . Heaviest Build 29 | 14 15 15 20 25 29 25 Greatest Support 47 | 20 20 20 20 20 47 30 Greatest Overweight (x) 2 | . . . . 1 . 2 Average Overweight (x) . | . . . . . . . Largest Inventory Capacity 8 | 8 8 8 8 8 8 8 Average Capacity 7 | 6 8 8 8 8 8 8 Most Carried 8 | 4 4 8 7 6 4 4 Average Carried 4 | 2 4 7 4 5 3 3 Final Capacity 8 | 8 8 8 8 8 8 5 Final Carried 7 | 4 4 7 5 5 4 2 Class Distribution -------------------- 39% | Mutant 36% | Scavenger-Skirmisher 23% | Scavenger-Mutant Dominant Class ---------------- Mutant | -10/Materials Mutant | -10/Mines Mutant | -10/Exiles Scavenger-Mutant | -9/Mines Scavenger-Skirmisher | -8/Materials Scavenger-Skirmisher | -8/Storage Resources | -11 -10 -10 -10 -9 -8 -8 ----------- Run | Yrd Mat Min Exi Min Mat Sto Matter Collected 774 | 205 48 99 . 141 128 153 Remotely . | . . . . . . . Salvage Created 1013 | . 48 187 . 140 175 463 Parts 53 | . 1 18 . 6 9 19 Haulers Intercepted . | . . . . . . . Recyclers Shooed . | . . . . . . . Parts Field Recycled . | . . . . . . . Retrieved Matter . | . . . . . . . Parts Self-Destructed . | . . . . . . . Prevented . | . . . . . . . Kills | -11 -10 -10 -10 -9 -8 -8 ------- Run | Yrd Mat Min Exi Min Mat Sto Combat Hostiles Destroyed 28 | . 1 8 . 6 3 10 Guns 23 | . 1 8 . 6 3 5 Cannons 2 | . . . . . . 2 AOE 3 | . . . . . . 3 Classes Destroyed 9 | . 1 1 . 2 1 4 Builder 1 | . . . . . . 1 Recycler 1 | . . . . . . 1 Watcher 1 | . . . . . 1 . Swarmer 6 | . . 6 . . . . Grunt 13 | . 1 2 . 1 3 6 Brawler 1 | . . . . 1 . . Duelist 1 | . . . . . . 1 Sentry 3 | . . . . . . 3 Assembled 4 | . . . . 4 . . Best Kill Streak 6 | . 1 3 . 3 2 6 Combat Bots Only 4 | . 1 3 . 3 2 4 Max Kills in Single Turn 3 | . 1 1 . 1 1 3 Gunslinging . | . . . . . . . Exploded 1 | . . . . . . 1 Melee . | . . . . . . . Uniques/NPCs Destroyed . | . . . . . . . Combat | -11 -10 -10 -10 -9 -8 -8 -------- Run | Yrd Mat Min Exi Min Mat Sto Hostile Shots Fired 217 | . 1 44 . 56 35 81 Missed 50 | . . 7 . 16 12 15 Damage Taken 2878 | . 12 348 . 515 608 1395 Core 719 | . . 86 . 78 113 442 Absorbed by Shields . | . . . . . . . Core Remaining (%) 67 | 100 . . . 34 . . Volleys Fired 121 | . 1 17 . 23 30 50 Largest 3 | . 2 2 . 2 3 3 Hottest 169 | . 90 70 . 40 63 169 Shots Fired 243 | . 2 34 . 46 77 84 Gun 226 | . 2 34 . 46 77 67 Cannon 12 | . . . . . . 12 Launcher 5 | . . . . . . 5 Special . | . . . . . . . Kinetic 199 | . . 23 . 46 77 53 Thermal 38 | . 1 11 . . . 26 Explosive 5 | . . . . . . 5 Electromagnetic 1 | . 1 . . . . . Robot Hit Streak 17 | . 2 5 . 7 7 17 Robot Miss Streak 9 | . . 3 . 5 9 3 Penetration Max . | . . . . . . . Secondary Targets 3 | . . 1 . 2 . . Max Gunslinging Chain 1 | . . 1 . 1 . . Shots Hit Robots 154 | . 2 22 . 27 41 62 Core Hits 71 | . 2 12 . 13 19 25 Critical Kills . | . . . . . . . Critical Parts Destroyed 1 | . . . . . . 1 Critical Strikes 2 | . 1 . . . . 1 Burn 1 | . 1 . . . . . Destroy 1 | . . . . . . 1 Melee Attacks . | . . . . . . . Impact . | . . . . . . . Slashing . | . . . . . . . Piercing . | . . . . . . . Sneak Attacks . | . . . . . . . Combat Hostiles . | . . . . . . . Follow-up Attacks . | . . . . . . . Damage Inflicted 2269 | . 25 282 . 233 357 1372 Guns 1460 | . 25 276 . 220 357 582 Cannons 291 | . . . . . . 291 Explosions 497 | . . . . . . 497 Melee . | . . . . . . . Ramming 21 | . . 6 . 13 . 2 Kinetic 1264 | . . 162 . 220 357 525 Thermal 474 | . 12 114 . . . 348 Explosive 497 | . . . . . . 497 Electromagnetic 13 | . 13 . . . . . Impact . | . . . . . . . Slashing . | . . . . . . . Piercing . | . . . . . . . Highest Corruption 1 | . 1 1 1 1 . . Average Corruption 1 | . 1 1 1 1 . . Corruption Purged . | . . . . . . . Corruption Blocked . | . . . . . . . Effects 10 | . . 5 4 1 . . Message Errors 3 | . . 2 . 1 . . Matter Fused 2 | . . . 2 . . . Energy Discharges 2 | . . . 2 . . . Data Loss (minor) 2 | . . 2 . . . . Alerts 1 | . . 1 . . . . Overload Shots . | . . . . . . . Overflow Damage 2 | . . . . . . 2 Projectiles . | . . . . . . . Explosions 2 | . . . . . . 2 Melee . | . . . . . . . Knockbacks 1 | . . . . . . 1 Impact . | . . . . . . . Kinetic 1 | . . . . . . 1 Secondary . | . . . . . . . Self-Inflicted Damage 180 | . . . . . . 180 Shots 5 | . . . . . . 5 Rammed 1 | . . . . . . 1 Targets Rammed 7 | . . 2 . 3 . 2 Kicked 6 | . . 2 . 3 . 1 Crushed . | . . . . . . . Highest Temperature 439 | . 30 117 . 58 102 439 Average Temperature 90 | . 17 37 . 15 34 170 Received Heat Transfer 877 | . 6 81 . 178 162 450 Effects 5 | . . . . . . 5 Shutdowns 1 | . . . . . . 1 Energy Bleed 1 | . . . . . . 1 Interference 1 | . . . . . . 1 Short Circuit 1 | . . . . . . 1 Damage (minor) 1 | . . . . . . 1 Siege Activations . | . . . . . . . Robots Corrupted . | . . . . . . . Combat Hostiles . | . . . . . . . Parts Fried . | . . . . . . . Impact Corruptions . | . . . . . . . Robots Melted . | . . . . . . . Combat Hostiles . | . . . . . . . Parts Melted 2 | . . . . . . 2 Heat Transferred 1282 | . 111 333 . . . 838 Parts Sabotaged . | . . . . . . . Parts Stolen . | . . . . . . . Parts Stripped . | . . . . . . . Power Chain Reactions . | . . . . . . . Alert | -11 -10 -10 -10 -9 -8 -8 ------- Run | Yrd Mat Min Exi Min Mat Sto Peak Influence 182 | . 27 120 . 50 87 182 Initial 10 | . . 10 . . . . Average 47 | . 11 58 . 28 39 95 Maximum Alert Level . | . . . . . . . Low Security (%) 100 | 100 100 100 . 100 100 100 Level 1 . | . . . . . . . Level 2 . | . . . . . . . Level 3 . | . . . . . . . Level 4 . | . . . . . . . Level 5 . | . . . . . . . High Security . | . . . . . . . Max Security . | . . . . . . . Squads Dispatched 3 | . 1 . . . 2 . Investigation . | . . . . . . . Extermination . | . . . . . . . Reinforcement 3 | . 1 . . . 2 . Assault . | . . . . . . . Garrison . | . . . . . . . Intercept . | . . . . . . . Searches Triggered . | . . . . . . . Construction Impeded . | . . . . . . . Haulers Reinforced . | . . . . . . . Active Scanning Responses . | . . . . . . . Cargo Convoy Interrupts . | . . . . . . . Stealth | -11 -10 -10 -10 -9 -8 -8 --------- Run | Yrd Mat Min Exi Min Mat Sto Distress Signals 2 | . . . . . 1 1 Communications Jammed . | . . . . . . . Distress Signals . | . . . . . . . Times Spotted 47 | . 1 8 . 12 13 13 Peak Tracking Total 8 | . 1 3 . 5 4 8 Tactical Retreats 6 | . . . . 3 2 1 Traps | -11 -10 -10 -10 -9 -8 -8 ------- Run | Yrd Mat Min Exi Min Mat Sto Traps Triggered . | . . . . . . . Indirectly . | . . . . . . . Trap Hack Attempts . | . . . . . . . Triggered . | . . . . . . . Disarmed . | . . . . . . . Reprogrammed . | . . . . . . . Reused . | . . . . . . . Traps Extracted . | . . . . . . . Installed . | . . . . . . . Triggered . | . . . . . . . Machines | -11 -10 -10 -10 -9 -8 -8 ---------- Run | Yrd Mat Min Exi Min Mat Sto Machines Disabled 2 | . . . . . . 2 Max in Single Turn 1 | . . . . . . 1 Machines Repaired . | . . . . . . . Machines Dismantled . | . . . . . . . Machines Sabotaged . | . . . . . . . Overloaded Fab Kills . | . . . . . . . Hacking | -11 -10 -10 -10 -9 -8 -8 --------- Run | Yrd Mat Min Exi Min Mat Sto Machines Accessed 11 | . 3 . . . 4 4 Terminals 10 | . 3 . . . 4 3 Fabricators . | . . . . . . . Repair Stations . | . . . . . . . Recycling Units . | . . . . . . . Scanalyzers . | . . . . . . . Garrison Access 1 | . . . . . . 1 Total Hacks 31 | . 9 . . . 15 7 Successful 17 | . 3 . . . 10 4 Failed 14 | . 6 . . . 5 3 Catastrophic 6 | . 4 . . . . 2 Database Lockouts . | . . . . . . . Manual 1 | . . . 1 . . . Terminals 28 | . 9 . . . 15 4 Fabricators . | . . . . . . . Repair Stations . | . . . . . . . Recycling Units . | . . . . . . . Scanalyzers . | . . . . . . . Garrison Access 3 | . . . . . . 3 Terminal Hacks 17 | . 3 . . . 10 4 Record 1 | . 1 . . . . . Robot Schematic 1 | . . . . . . 1 Robot Analysis 1 | . . . . . 1 . Open Door 2 | . . . . . . 2 Branch Access Points 1 | . 1 . . . . . Emergency Access Points 1 | . . . . . 1 . Scanalyzer Index 1 | . . . . . 1 . Alert Level 3 | . . . . . 3 . Unreport Threat 1 | . . . . . 1 . Locate Traps 3 | . 1 . . . 1 1 Reinforcement Status 1 | . . . . . 1 . Zone Layout 1 | . . . . . 1 . Fabricator Hacks . | . . . . . . . Repair Station Hacks . | . . . . . . . Recycling Unit Hacks . | . . . . . . . Scanalyzer . | . . . . . . . Garrison Access Hacks . | . . . . . . . Unauthorized Hacks . | . . . . . . . Terminals . | . . . . . . . Fabricators . | . . . . . . . Repair Stations . | . . . . . . . Recycling Units . | . . . . . . . Scanalyzers . | . . . . . . . Garrison Access . | . . . . . . . Data Cores Recovered . | . . . . . . . Used . | . . . . . . . Hacking Detections 9 | . 3 . . . 3 3 Full Trace Events 2 | . 1 . . . . 1 Feedback Events 1 | . 1 . . . . . Corruption 1 | . 1 . . . . . Feedback Blocked . | . . . . . . . Robot Schematics Acquired 1 | . . . . . . 1 Robots Built . | . . . . . . . Authchips . | . . . . . . . Time . | . . . . . . . Total Robot Build Rating . | . . . . . . . Part Schematics Acquired . | . . . . . . . Parts Built . | . . . . . . . Authchips . | . . . . . . . Time . | . . . . . . . Total Part Build Rating . | . . . . . . . Parts Repaired . | . . . . . . . Time . | . . . . . . . Parts Recycled . | . . . . . . . Recycled Matter . | . . . . . . . Retrieved Matter . | . . . . . . . Retrieved Components . | . . . . . . . Parts Scanalyzed . | . . . . . . . Part Schematics Acquired . | . . . . . . . Parts Damaged . | . . . . . . . Bothacking | -11 -10 -10 -10 -9 -8 -8 ------------ Run | Yrd Mat Min Exi Min Mat Sto Used RIF Installer . | . . . . . . . Robots Hacked . | . . . . . . . Non-combat . | . . . . . . . Combat . | . . . . . . . Robot Hacks Applied . | . . . . . . . Relay Couplers Released . | . . . . . . . Fabnet Peak Effective % . | . . . . . . . Robots Rewired . | . . . . . . . Allies Hacked . | . . . . . . . Hacks Repelled . | . . . . . . . Allies | -11 -10 -10 -10 -9 -8 -8 -------- Run | Yrd Mat Min Exi Min Mat Sto Total Allies . | . . . . . . . Largest Group . | . . . . . . . Highest-Rated Group . | . . . . . . . Highest-Rated Ally . | . . . . . . . Total Orders . | . . . . . . . Ally Attacks . | . . . . . . . Total Damage . | . . . . . . . Kills . | . . . . . . . Allies Corrupted . | . . . . . . . Allies Melted . | . . . . . . . Intel | -11 -10 -10 -10 -9 -8 -8 ------- Run | Yrd Mat Min Exi Min Mat Sto Robot Analysis Total 1 | . . . . . 1 . Derelict Logs Recovered 3 | . . 1 . 2 . . Drone Launches 2 | . . . . . . 2 Drone Recoveries 1 | . . . . . . 1 Exploration | -11 -10 -10 -10 -9 -8 -8 ------------- Run | Yrd Mat Min Exi Min Mat Sto Turns Passed 2897 | 62 196 547 298 571 774 449 Spaces Moved 1743 | 44 139 381 238 288 476 177 Core 9 | 4 . . . . . 5 Treads . | . . . . . . . Legs 1734 | 40 139 381 238 288 476 172 Wheels . | . . . . . . . Hover . | . . . . . . . Flight . | . . . . . . . Fastest Speed 50 | 50 120 120 120 120 120 100 Average Speed 133 | 113 120 120 120 171 121 168 Slowest Speed 260 | 120 120 120 120 190 122 260 Overloaded Moves . | . . . . . . . Propulsion Burnouts . | . . . . . . . Robots Hopped . | . . . . . . . Cave-ins Triggered . | . . . . . . . Exploration Rate (%) 43 | 3 25 80 61 66 38 34 Regions Visited 6 Branch Regions 4 Pre-discovered Areas 1 | . . . . 1 . . Known Exits Taken 2 | . 1 . 1 . . . Unknown Exits Taken 4 | 1 . 1 . 1 1 . Scrap Searched 4 | . . 2 . 2 . . Spaces Dug . | . . . . . . . Terrain Destroyed 21 | . . . . . . 21 Melee . | . . . . . . . Projectile 1 | . . . . . . 1 AOE 20 | . . . . . . 20 Terrain Rammed . | . . . . . . . Walls Destroyed . | . . . . . . . Machines Disabled . | . . . . . . . Actions | -11 -10 -10 -10 -9 -8 -8 --------- Run | Yrd Mat Min Exi Min Mat Sto Total 2105 | 53 165 439 252 327 619 250 Wait 169 | . 25 23 . 1 108 12 Move 1737 | 43 138 380 237 287 475 177 Hop . | . . . . . . . Pick Up 22 | 4 . 9 3 5 1 . Fast Attach 16 | 6 1 . . . 3 6 Attach 9 | . . 1 3 1 2 2 Detach 2 | . . . 2 . . . Swap 9 | . . 2 3 3 . 1 Drop 13 | . . 5 4 4 . . Fire 121 | . 1 17 . 23 30 50 Melee . | . . . . . . . Ram 1 | . . . . . . 1 Kick 6 | . . 2 . 3 . 1 Crush . | . . . . . . . Escape Stasis . | . . . . . . . Rewire . | . . . . . . . Trap . | . . . . . . . Miscellaneous . | . . . . . . . Route ------- -11/Scrapyard -10/Materials -10/Mines (discovered 3 exits: [*Mat x2] / *Exi) -10/Exiles (discovered 2 exits: *Min x2) -9/Mines -8/Materials (discovered 2 exits: [*Fac] / *Sto) -8/Storage History --------- Turn | Location | Event 8 | -11/Scrapyard | Discovered new exit (range 16) 63 | -11/Scrapyard | Entered Materials 72 | -10/Materials | Identified exit to Mines 259 | -10/Materials | Entered Mines 269 | -10/Mines | Discovered new exit (range 9) 306 | -10/Mines | Build established: Mutant 646 | -10/Mines | Discovered new exit (range 4) 797 | -10/Mines | Deemed a non-threat by the Exiles lab entrance 798 | -10/Mines | Discovered new exit (range 5) 806 | -10/Mines | Entered Exiles 807 | -10/Exiles | Identified exit to Mines 837 | -10/Exiles | Met 8R-AWN 859 | -10/Exiles | Met EX-HEX 899 | -10/Exiles | Met EX-BIN 916 | -10/Exiles | Aligned with FarCom system 917 | -10/Exiles | Given EX-Vault access code 959 | -10/Exiles | Opened EX-Vault 965 | -10/Exiles | Found Prototype Energy Cannon 970 | -10/Exiles | Found Prototype Device 972 | -10/Exiles | Found Prototype Device 984 | -10/Exiles | Identified Cloak of Protection 985 | -10/Exiles | Identified Supersonic Drone Bay 988 | -10/Exiles | Identified Gui. Plasma Cannon 1007 | -10/Exiles | Warned to stay clear of 0b10 Research branches 1047 | -10/Exiles | Met EX-DEC 1104 | -10/Exiles | Stole two prototypes: Cloak of Protection, Gui. Plasma Cannon 1104 | -10/Exiles | Entered Mines 1179 | -9/Mines | Assembled infested the area 1184 | -9/Mines | Received a Rocket Launcher from a helpful Derelict 1236 | -9/Mines | Core integrity fell below 50% 1383 | -9/Mines | Learned Materials non-interactive machine intel 1410 | -9/Mines | Learned location of Zion (-7) 1430 | -9/Mines | Build established: Scavenger-Mutant 1569 | -9/Mines | Discovered new exit (range 7) 1630 | -9/Mines | Found a damaged Exp. Sensor Array with a note attached 1634 | -9/Mines | Found Prototype Device 1675 | -9/Mines | Entered Materials 1675 | -8/Materials | Evolved 4 slots: Propulsion x2, Utility x1, Weapon x1 1676 | -8/Materials | Loaded intel: 49 non-interactive machine locations 1972 | -8/Materials | Build established: Scavenger-Skirmisher 2005 | -8/Materials | Discovered new exit (range 13) 2377 | -8/Materials | Discovered new exit (range 13) 2449 | -8/Materials | Entered Storage 2471 | -8/Storage | Lost 3 parts (1n1u1w) 2642 | -8/Storage | Lost 3 parts (3n) 2668 | -8/Storage | Core integrity fell below 50% 2690 | -8/Storage | Lost 4 parts (1p1u2w) 2893 | -8/Storage | Core integrity fell below 20% 2898 | -8/Storage | Destroyed self with Rocket Launcher Last Messages --------------- Engine shutdown. 02889_ Particle Gun broken. 02889_ Overheating: Short circuit. 02890_ Overheating: Sml. Storage Unit damaged (-44). 02890_ R-06 Scavenger destroyed. 02890_ Terminal disabled. 02890_ U-05 Engineer destroyed. 02891_ Lgt. Angular Momentum Engine destroyed. 02894_ Critical hit (Burn: +37). 02894_ U-05 Engineer lays Concrete. 02894_ Broken Particle Gun destroyed. 02894_ Destroyed Broken Particle Gun. 02895_ U-05 Engineer lays Concrete. 02896_ G-50 Soldier destroyed. 02896_ Destroyed Lgt. Ion Engine. 02897_ U-05 Engineer lays Concrete. 02898_ Sml. Storage Unit destroyed. 02898_ U-05 Engineer lays Concrete. 02898_ G-47 Trooper destroyed. Map ----- +----------------------------------------------------+ | ???????????????????????????????????????????????? | | ???????????????????????????????????????????????? | | ???????????????????????????????????????????????? | | ???????????????????????????????????????????????? | | ???????????????????????????????????????????????? | | ???????????????????????????????????????????????? | | ???????????????????????????????????????????????? | | ???????????????????????????????????????????????? | | ???????????????????????????????????????????????? | | ???????????????????????????????????????????????? | | ???????????????????????????????????????????????? | | ???????????????????????????????????????????????? | | ????????????????????????????????????????##?????? | | ???????????????????????????????????????? #???### | | ???????????????????????????????????????? #??? | | ???????????????????????????????????????? #??? | | ???????????????????????????????????????? #??"" " | | ????????????????######??????????#?????"" #?""" " | | ????????????????#"""""??####????# ???"" #^?"" " | | ????????????????#""T "## ##???# """" #^?""^" | | ????????????????? ##??# #???"^" | | ???????????????# """ ##?# #??? | | ???????????????# """ ######+##+######+# | | ???????????????# """ % u | | ???????????????# a u | | ???????????????# !!! @ | | ???????????????# !!! = ##+##+######+# | | ??????????????# !! " #r # # | | ??????????????## + + # " | | ???????????????##########w## ###### # " | | ??????????????????! ????# #????# """ """ # " | | ?????????????????? ????# #????# """ """ # " | | ???????????????????Y ????# #????# """ """ # | | ???????????????????? ????# #????# # | | ????????????????????#/#???## ##???# # | | ????????????????????# ##### ###########+###### | | ????????????????????# w | | ????????????????????# ##### ##+##### | | ???????????Y????????# #??###%## # | | ???????????????????? ####T#%## + | | ???????????????????##### +%## "" #####/##### | | ???????????????????????######## "G !#???# #### | | ?????????????????????????????# "" #???# !#!!! | | ?????????????????????????????## #???#!%%%= | | ??????????????????????????????########???##T#!!! | | ??????????????????????????????????????????###### | | | | | | | | | +----------------------------------------------------+ Best States ------------- Heat Dissipation 31 Energy Generation 18 Energy Capacity 265 Matter Stores 300 Matter Capacity 300 Sight Range 16 Robot Scan Range 15 Terrain Scan Density 10 Cloak Strength 5 Evasion (%) 55 Item Schematics ----------------- None Robot Schematics ------------------ W-25 Informer | -8/Storage | Hacked Fabricated ------------ Nothing Alien Tech Used ----------------- None Achievements -------------- None Challenges ------------ None Game ------ Seed HardenedLightpackMount Manual? 0 Play Time 00:33:38 Cumulative 7.7 hours Start 2024.04.21 @ 23:51:08 End 2024.04.22 @ 00:22:39 Sessions 1 Manual Loads 0 Difficulty Rogue Special Mode None Game No. 10 Rogue 10 Adventurer 0 Explorer 0 Win Type - Total 0 Types 0/0/0/0/0/0/0/0/0 Lore% 12 Gallery% 13 Achievement% 11 Wizard Run 0 Options --------- Layout 1 ASCII 0 Keyboard 1 Movement Arrows Keybinds 0 Fullscreen 1 Font 24/Smallcaps Map View 50x35 Zoom Use 0% Tactical HUD 1 Map Filters NONE Filters NONE Steam 1 RUN: 734a9eff-24df-45c4-b97a-c04fdbeb86ad